fUST/lending_fUST_20250630
["ID","MTS","AMOUNT","RATE_DAILY","PERIOD"]
[368679755,1751292668498,-500.0,0.00021973,2]
[368679756,1751292668509,-160.04578804,0.00021973,2]
[368679757,1751292668519,-500.0,0.00021973,2]
[368679758,1751292668528,-500.0,0.00021973,2]
[368679759,1751292668537,-500.0,0.00021973,2]
[368679760,1751292668546,-500.0,0.00021973,2]
[368679761,1751292668556,-500.0,0.00021973,2]
[368679762,1751292668565,-500.0,0.00021973,2]
[368679763,1751292668575,-500.28227314,0.00021973,2]
[368679764,1751292668584,-500.0,0.00021973,2]
[368679765,1751292668593,-500.0,0.00021973,2]
[368679766,1751292668602,-500.0,0.00021973,2]
[368679767,1751292668612,-500.0,0.00021973,2]
[368679768,1751292668622,-500.0,0.00021973,2]
[368679769,1751292668631,-500.0,0.00021973,2]
[368679770,1751292668641,-500.0,0.00021973,2]
[368679771,1751292668650,-519.50937306,0.00021973,2]
[368679772,1751292668659,-616.73509144,0.00021973,2]
[368679773,1751292668670,-500.0,0.00021973,2]
[368679774,1751292668679,-500.0,0.00021973,2]
[368679775,1751292668689,-500.0,0.00021973,2]
[368679776,1751292668699,-417.72959227,0.00021973,2]
[368679777,1751292668709,-500.0,0.00021973,2]
[368679778,1751292668718,-500.0,0.00021973,2]
[368679779,1751292668727,-500.0,0.00021973,2]
[368679780,1751292668736,-500.0,0.00021973,2]
[368679781,1751292668746,-500.0,0.00021973,2]
[368679782,1751292668756,-521.62916457,0.00021973,2]
[368679783,1751292668765,-500.0,0.00021973,2]
[368679784,1751292668775,-500.0,0.00021973,2]
[368679785,1751292668783,-521.29076982,0.00021973,2]
[368679786,1751292668793,-500.0,0.00021973,2]
[368679787,1751292668802,-500.0,0.00021973,2]
[368679788,1751292668812,-500.0,0.00021973,2]
[368679789,1751292668822,-306.90086317,0.00021973,2]
[368679790,1751292668832,-500.0,0.00021973,2]
[368679791,1751292668842,-210.22072563,0.00021973,2]
[368679792,1751292668851,-160.04797764,0.00021973,2]
[368679793,1751292668860,-500.0,0.00021973,2]
[368679794,1751292668870,-500.0,0.00021973,2]
[368679795,1751292668879,-160.0494529,0.00021973,2]
[368679796,1751292668888,-535.06885935,0.00021973,2]
[368679797,1751292668898,-160.04797764,0.00021973,2]
[368679798,1751292668907,-160.04797764,0.00021973,2]
[368679799,1751292668917,-160.04803609,0.00021973,2]
[368679800,1751292668926,-160.047979,0.00021973,2]
[368679801,1751292668935,-500.0,0.00021973,2]
[368679802,1751292668944,-500.0,0.00021973,2]
[368679803,1751292668954,-500.0,0.00021973,2]
[368679804,1751292668965,-500.0,0.00021973,2]
[368679805,1751292668975,-500.0,0.00021973,2]
[368679806,1751292668985,-500.39951782,0.00021973,2]
[368679807,1751292668995,-500.0,0.00021973,2]
[368679808,1751292669005,-500.0,0.00021973,2]
[368679809,1751292669015,-500.0,0.00021973,2]
[368679810,1751292669024,-500.0,0.00021973,2]
[368679811,1751292669033,-600.0,0.00021973,2]
[368679812,1751292669043,-500.0,0.00021973,2]
[368679813,1751292669052,-500.0,0.00021973,2]
[368679814,1751292669061,-500.0,0.00021973,2]
[368679815,1751292669071,-500.0,0.00021973,2]
[368679816,1751292669079,-500.0,0.00021973,2]
[368679817,1751292669089,-500.79973189,0.00021973,2]
[368679818,1751292669098,-265.0,0.00021973,2]
[368679819,1751292669107,-200.0,0.0002199,3]
[368679820,1751292669117,-206.0,0.00021997,2]
[368679821,1751292669126,-206.0,0.00021997,2]
[368679822,1751292669135,-206.0,0.00021997,2]
[368679823,1751292669145,-206.0,0.00021997,2]
[368679824,1751292669154,-206.0,0.00021997,2]
[368679825,1751292669166,-206.0,0.00021997,2]
[368679826,1751292669175,-206.0,0.00021997,2]
[368679827,1751292669185,-206.0,0.00021997,2]
[368679828,1751292669195,-206.0,0.00021997,2]
[368679829,1751292669205,-151.0,0.00021997,5]
[368679830,1751292669216,-153027.19502012,0.00021999,2]
[368679831,1751292669226,-966217.58168927,0.00021999,2]
[368679832,1751292669235,-30313.91140432,0.00021999,2]
[368679833,1751292669245,-1133.9271694,0.00022,2]
[368679834,1751292669255,-615734.36849518,0.00022,5]
[368679835,1751292669264,-361989.20139595,0.00022,5]
[368679836,1751292669406,-369.561017,0.00022,5]
[368679838,1751292717249,-226.32360183,0.0001814,2]
[368679839,1751292720058,-182.03477715,0.0001814,2]
[368679840,1751292728863,-266.63617822,0.00018139,2]
[368679841,1751292731073,-33.36382178,0.00018139,2]
[368679842,1751292731095,-141.45600004,0.0001814,2]
[368679843,1751292732837,-241.85343601,0.0001814,2]
[368679844,1751292736130,-304.81130661,0.0001814,2]
[368679845,1751292742429,-227.60335694,0.0001814,2]
[368679846,1751292745101,-221.63119881,0.0001814,2]
[368679847,1751292751117,-163.08417994,0.0001814,2]
[368679848,1751292753727,-254.0251002,0.0001814,2]
[368679849,1751292762205,-178.16576123,0.0001814,2]
[368679850,1751292765971,-160.59957841,0.0001814,2]
[368679851,1751292767613,-159.40526469,0.0001814,2]
[368679852,1751292772541,-171.53104544,0.0001814,2]
[368679853,1751292776313,-200.0,0.0001814,2]
[368679854,1751292781209,-200.0,0.0001814,2]
[368679855,1751292783005,-339.60574898,0.0001814,2]
[368679856,1751292784596,-460.0,0.0001814,2]
[368679857,1751292787701,-157.14764056,0.00018139,2]
[368679858,1751292789904,-142.85235944,0.00018139,2]
[368679859,1751292789926,-53.3785212,0.0001814,2]
[368679860,1751292791997,-214.580515,0.0001814,2]
[368679861,1751292793618,-300.0,0.0001814,2]
[368679862,1751292797107,-196.26695015,0.0001814,2]
[368679863,1751292798837,-170.128773,0.0001814,2]
[368679864,1751292802620,-152.0,0.0001814,2]
[368679865,1751292805080,-233.83001848,0.0001814,2]
[368679866,1751292807705,-377.02556656,0.0001814,2]
[368679867,1751292813076,-183.32674217,0.0001814,2]
[368679868,1751292815245,-248.30643457,0.0001814,2]
[368679869,1751292821051,-193.96505387,0.0001814,2]
[368679870,1751292823004,-278.80837824,0.0001814,2]
[368679871,1751292825074,-258.12546949,0.0001814,2]
[368679872,1751292827191,-162.6316049,0.0001814,2]
[368679873,1751292829354,-152.0,0.0001814,2]
[368679874,1751292833524,-386.84422995,0.0001814,2]
[368679875,1751292835663,-405.9435708,0.0001814,2]
[368679876,1751292842954,-263.64663,0.0001814,2]
[368679877,1751292882051,-300.0,0.0001814,2]
[368679878,1751292905366,-300.0,0.00018139,2]
[368679879,1751292907640,-241.3308556,0.00018139,2]
[368679880,1751292911627,-181.98501276,0.00018139,2]
[368679881,1751292917078,-273.03324809,0.00018137,2]
[368679882,1751292918761,-95.11357244,0.00018137,2]
[368679883,1751292918786,-78.20890722,0.00018139,2]
[368679884,1751292921101,-160.26247724,0.00018139,2]
[368679885,1751292925643,-167.21274718,0.00018139,2]
[368679886,1751292925665,-59.52366711,0.0001814,2]
[368679887,1751292927971,-152.70048686,0.0001814,2]
[368679888,1751292930709,-391.46128161,0.0001814,2]
[368679889,1751292941875,-342.34103958,0.0001814,2]
[368679890,1751292946460,-152.09943122,0.0001814,2]
[368679891,1751292950203,-199.46270862,0.0001814,2]
[368679895,1751292951818,-308.55498021,0.0001814,2]
[368679898,1751292959557,-151.95642009,0.0001814,2]
[368679899,1751292961183,-300.245845,0.0001814,2]
[368679900,1751292963311,-185.45790056,0.0001814,2]
[368679901,1751292967580,-167.7940473,0.0001814,2]
[368679902,1751292970187,-176.14673602,0.0001814,2]
[368679903,1751292980973,-167.18271929,0.0001814,2]
[368679904,1751292982536,-170.84660709,0.0001814,2]
[368679907,1751293018629,8284.48841086,0.00017238,2]
[368679908,1751293018659,9616.20741596,0.00017238,2]
[368679909,1751293018684,6999.30417318,0.00017238,2]
[368679911,1751293109316,-348.00964991,0.00018136,2]
[368679913,1751293118350,-168.72098321,0.00018136,2]
[368679914,1751293120601,-207.0259612,0.00018136,2]
[368679915,1751293122222,-5.89171425,0.00018136,2]
[368679917,1751293296107,-163.41782826,0.00018136,2]
[368679918,1751293299531,-259.48271448,0.00018136,2]
[368679919,1751293306340,-218.28739803,0.00018136,2]
[368679945,1751293580531,207.0655378,0.00017236,2]
[368679947,1751293684963,-160.26247724,0.00018133,2]
[368679948,1751293684988,-70.18809562,0.00018135,2]
[368679949,1751293687074,-300.0,0.00018135,2]
[368679950,1751293688582,-163.09534951,0.00018135,2]
[368679951,1751293712936,8521.67105729,0.00017,2]
[368679952,1751293719435,151.000001,0.0002,120]
[368679953,1751293721023,9094.07003722,0.00015,2]
[368679954,1751293721811,154.35484889,0.000168,2]
[368679955,1751293724829,280.70585,0.00013699,2]
[368679956,1751293737651,-114.85220735,0.00018135,2]
[368679959,1751293765607,-177.26252989,0.00018133,2]
[368679966,1751293809225,520.00292088,0.00018234,10]
[368680017,1751293831687,-14.83152487,0.00018133,2]
[368680019,1751293831697,-1002.41724111,0.00018233,2]
[368680021,1751293831706,-300.0,0.00018233,2]
[368680022,1751293831715,-300.0,0.00018233,2]
[368680024,1751293831725,-300.0,0.00018233,2]
[368680026,1751293831736,-300.0,0.00018233,2]
[368680027,1751293831746,-1200.0,0.00018233,2]
[368680028,1751293831756,-460.0,0.00018234,2]
[368680029,1751293831765,-419.22331822,0.00018234,2]
[368680047,1751293832036,-40.77668178,0.00018234,2]
[368680048,1751293832045,-460.0,0.00018234,2]
[368680049,1751293832055,-460.0,0.00018234,2]
[368680050,1751293832064,-364.49976752,0.00018234,2]
[368680051,1751293832075,-946.78023248,0.00018234,2]
[368680052,1751293832085,-460.0,0.00018234,2]
[368680053,1751293832094,-19.73281038,0.00018234,2]
[368680054,1751293833230,7288.0,0.0001811,2]
[368680117,1751293837957,-440.26718962,0.00018234,2]
[368680119,1751293837967,-460.0,0.00018234,2]
[368680122,1751293837977,-460.0,0.00018234,2]
[368680124,1751293837987,-460.0,0.00018234,2]
[368680126,1751293837996,-570.52635945,0.00018235,2]
[368680127,1751293838006,-460.0,0.00018235,2]
[368680129,1751293838014,-460.0,0.00018235,2]
[368680131,1751293838023,-440.0,0.00018235,2]
[368680133,1751293838032,-460.0,0.00018235,2]
[368680135,1751293838042,-460.0,0.00018235,2]
[368680137,1751293838051,-460.0,0.00018235,2]
[368680139,1751293838061,-460.0,0.00018235,2]
[368680141,1751293838070,-460.0,0.00018235,2]
[368680143,1751293838079,-460.0,0.00018235,2]
[368680146,1751293838089,-460.0,0.00018235,2]
[368680148,1751293838098,-460.0,0.00018235,2]
[368680150,1751293838107,-528.03,0.00018235,2]
[368680152,1751293838117,-460.0,0.00018235,2]
[368680154,1751293838126,-460.0,0.00018235,2]
[368680156,1751293838136,-460.0,0.00018235,2]
[368680158,1751293838144,-460.0,0.00018235,2]
[368680160,1751293838153,-460.0,0.00018235,2]
[368680162,1751293838162,-460.0,0.00018235,2]
[368680164,1751293838172,-500.0,0.00018235,2]
[368680166,1751293838181,-460.0,0.00018235,2]
[368680167,1751293838189,-460.0,0.00018235,2]
[368680169,1751293838199,-460.0,0.00018235,2]
[368680171,1751293838208,-460.0,0.00018235,2]
[368680174,1751293838218,-460.0,0.00018235,2]
[368680175,1751293838227,-384.74975239,0.00018235,2]
[368680178,1751293838237,-479.93,0.00018235,2]
[368680180,1751293838246,-460.0,0.00018235,2]
[368680181,1751293838255,-177.16847427,0.00018235,2]
[368680184,1751293838267,-282.83152573,0.00018235,2]
[368680186,1751293838276,-159.29710545,0.00018235,2]
[368680188,1751293838285,-460.0,0.00018235,2]
[368680205,1751293838450,-460.0,0.00018235,2]
[368680206,1751293838461,-2366.77,0.00018235,2]
[368680207,1751293838473,-460.0,0.00018235,2]
[368680208,1751293838482,-460.0,0.00018235,2]
[368680209,1751293838492,-460.0,0.00018235,2]
[368680210,1751293838501,-460.0,0.00018235,2]
[368680211,1751293838511,-460.0,0.00018235,2]
[368680212,1751293838521,-460.0,0.00018235,2]
[368680213,1751293838531,-2143.09,0.00018235,2]
[368680214,1751293838540,-460.0,0.00018235,2]
[368680215,1751293838550,-460.0,0.00018235,2]
[368680216,1751293838560,-460.0,0.00018235,2]
[368680217,1751293838570,-460.0,0.00018235,2]
[368680218,1751293838579,-460.0,0.00018235,2]
[368680219,1751293838589,-598.27870759,0.00018235,2]
[368680220,1751293838599,-235.33781187,0.00018235,2]
[368680221,1751293838608,-460.0,0.00018235,2]
[368680222,1751293838619,-460.0,0.00018235,2]
[368680223,1751293838629,-460.0,0.00018235,2]
[368680224,1751293838638,-500.0,0.00018235,2]
[368680225,1751293838648,-1813.65,0.00018235,2]
[368680226,1751293838658,-460.0,0.00018235,2]
[368680227,1751293838668,-460.0,0.00018235,2]
[368680228,1751293838679,-668.08,0.00018235,2]
[368680229,1751293838689,-460.0,0.00018235,2]
[368680230,1751293838699,-162.44540029,0.00018235,2]
[368680231,1751293838708,-460.0,0.00018235,2]
[368680232,1751293838718,-460.0,0.00018235,2]
[368680233,1751293838727,-302.68778321,0.00018235,2]
[368680234,1751293838737,-2801.94,0.00018235,2]
[368680235,1751293838746,-460.0,0.00018235,2]
[368680236,1751293838755,-1102.05,0.00018235,2]
[368680237,1751293838766,-460.0,0.00018235,2]
[368680238,1751293838775,-460.0,0.00018235,2]
[368680239,1751293838785,-460.0,0.00018235,2]
[368680240,1751293838794,-460.0,0.00018235,2]
[368680241,1751293838803,-460.0,0.00018235,2]
[368680242,1751293838813,-500.0,0.00018235,2]
[368680243,1751293838822,-460.0,0.00018235,2]
[368680244,1751293838837,-523.86,0.00018235,2]
[368680245,1751293838846,-460.0,0.00018235,2]
[368680246,1751293838856,-460.0,0.00018235,2]
[368680247,1751293838865,-460.0,0.00018235,2]
[368680248,1751293838877,-1330.48,0.00018235,2]
[368680249,1751293838887,-460.0,0.00018235,2]
[368680250,1751293838896,-460.0,0.00018235,2]
[368680251,1751293838905,-460.0,0.00018235,2]
[368680252,1751293838915,-460.0,0.00018236,2]
[368680253,1751293838927,-460.0,0.00018236,2]
[368680254,1751293838936,-460.0,0.00018236,2]
[368680255,1751293838946,-460.0,0.00018236,2]
[368680256,1751293838955,-514.87927659,0.00018236,2]
[368680257,1751293838964,-437.13151554,0.00018236,2]
[368680258,1751293838973,-460.0,0.00018236,2]
[368680259,1751293838983,-460.0,0.00018236,2]
[368680260,1751293838993,-500.0,0.00018236,2]
[368680261,1751293839003,-460.0,0.00018236,2]
[368680262,1751293839012,-469.49567792,0.00018236,2]
[368680263,1751293839022,-460.0,0.00018236,2]
[368680264,1751293839031,-438.50187781,0.00018236,2]
[368680265,1751293839040,-460.0,0.00018236,2]
[368680266,1751293839050,-269.8904321,0.00018236,2]
[368680267,1751293839059,-460.0,0.00018236,2]
[368680268,1751293839068,-460.0,0.00018236,2]
[368680269,1751293839078,-460.0,0.00018236,2]
[368680270,1751293839087,-460.0,0.00018236,2]
[368680271,1751293839097,-313.33711761,0.00018236,2]
[368680272,1751293839106,-460.0,0.00018236,2]
[368680273,1751293839118,-460.0,0.00018236,2]
[368680274,1751293839127,-460.0,0.00018236,2]
[368680275,1751293839137,-460.0,0.00018236,2]
[368680276,1751293839146,-460.0,0.00018236,2]
[368680277,1751293839158,-566.8,0.00018236,2]
[368680278,1751293839167,-460.0,0.00018236,2]
[368680279,1751293839176,-460.0,0.00018236,2]
[368680280,1751293839186,-460.0,0.00018236,2]
[368680281,1751293839195,-460.0,0.00018236,2]
[368680282,1751293839205,-460.0,0.00018236,2]
[368680283,1751293839216,-460.0,0.00018236,2]
[368680284,1751293839225,-460.0,0.00018236,2]
[368680285,1751293839235,-460.0,0.00018236,2]
[368680286,1751293839245,-624.25,0.00018236,2]
[368680287,1751293839256,-460.0,0.00018236,2]
[368680288,1751293839266,-460.0,0.00018236,2]
[368680289,1751293839275,-485.87,0.00018236,2]
[368680290,1751293839285,-460.1135327,0.00018236,2]
[368680291,1751293839294,-460.0,0.00018236,2]
[368680292,1751293839304,-460.0,0.00018236,2]
[368680293,1751293839314,-750.98,0.00018236,2]
[368680294,1751293839323,-460.0,0.00018236,2]
[368680295,1751293839332,-460.0,0.00018236,2]
[368680296,1751293839342,-460.0,0.00018236,2]
[368680297,1751293839351,-460.0,0.00018236,2]
[368680298,1751293839360,-460.0,0.00018236,2]
[368680299,1751293839373,-1378.23,0.00018236,2]
[368680300,1751293839382,-460.0,0.00018236,2]
[368680301,1751293839392,-460.0,0.00018236,2]
[368680302,1751293839403,-460.0,0.00018236,2]
[368680303,1751293839412,-460.0,0.00018236,2]
[368680304,1751293839422,-460.0,0.00018236,2]
[368680305,1751293839432,-460.0,0.00018236,2]
[368680306,1751293839442,-460.0,0.00018236,2]
[368680307,1751293839452,-462.70684945,0.00018236,2]
[368680308,1751293839462,-460.0,0.00018236,2]
[368680309,1751293839472,-703.57,0.00018236,2]
[368680310,1751293839481,-490.99,0.00018236,2]
[368680311,1751293839491,-460.0,0.00018236,2]
[368680312,1751293839501,-460.0,0.00018236,2]
[368680313,1751293839511,-460.0,0.00018236,2]
[368680314,1751293839520,-460.0,0.00018236,2]
[368680315,1751293839529,-460.0,0.00018236,2]
[368680316,1751293839539,-2381.82,0.00018236,2]
[368680317,1751293839551,-460.0,0.00018236,2]
[368680318,1751293839561,-460.0,0.00018236,2]
[368680319,1751293839571,-460.0,0.00018236,2]
[368680320,1751293839580,-460.0,0.00018236,2]
[368680321,1751293839590,-460.0,0.00018236,2]
[368680322,1751293839600,-3080.07,0.00018236,2]
[368680323,1751293839610,-512.18,0.00018236,2]
[368680324,1751293839622,-460.0,0.00018236,2]
[368680325,1751293839632,-460.0,0.00018236,2]
[368680326,1751293839642,-669.49,0.00018236,2]
[368680327,1751293839653,-466.18,0.00018236,2]
[368680328,1751293839662,-787.84,0.00018236,2]
[368680329,1751293839673,-500.0,0.00018237,2]
[368680330,1751293839682,-460.0,0.00018237,2]
[368680331,1751293839692,-1462.97,0.00018237,2]
[368680332,1751293839703,-460.0,0.00018237,2]
[368680333,1751293839713,-3983.7,0.00018237,2]
[368680334,1751293839723,-1280.81,0.00018237,2]
[368680335,1751293839733,-460.0,0.00018237,2]
[368680336,1751293839742,-460.0,0.00018237,2]
[368680337,1751293839752,-460.0,0.00018237,2]
[368680338,1751293839761,-518.22,0.00018237,2]
[368680339,1751293839771,-460.0,0.00018237,2]
[368680340,1751293839781,-460.0,0.00018237,2]
[368680341,1751293839791,-461.45439657,0.00018238,2]
[368680342,1751293839800,-460.0,0.00018238,2]
[368680343,1751293839810,-460.0,0.00018238,2]
[368680344,1751293839819,-460.0,0.00018238,2]
[368680346,1751293839830,-460.0,0.00018238,2]
[368680347,1751293839843,-460.0,0.00018238,2]
[368680348,1751293839853,-460.0,0.00018238,2]
[368680349,1751293839863,-276.76,0.00018238,2]
[368680350,1751293839875,-460.0,0.00018238,2]
[368680351,1751293839884,-535.27,0.00018238,2]
[368680352,1751293839894,-460.0,0.00018238,2]
[368680353,1751293839905,-460.0,0.00018238,2]
[368680354,1751293839916,-339.98,0.00018238,2]
[368680355,1751293839925,-460.0,0.00018238,2]
[368680356,1751293839935,-460.0,0.00018238,2]
[368680357,1751293839945,-500.0,0.00018238,2]
[368680358,1751293839954,-313.04376125,0.00018338,2]
[368680359,1751293839964,-460.0,0.00018338,2]
[368680360,1751293839973,-460.0,0.00018338,2]
[368680361,1751293839983,-532.41466355,0.00018407,2]
[368680362,1751293839992,-500.0,0.00018407,2]
[368680363,1751293840002,-500.0,0.00018407,2]
[368680364,1751293840012,-500.0,0.00018407,2]
[368680365,1751293840021,-500.0,0.00018407,2]
[368680366,1751293840031,-296.4720842,0.00018407,2]
[368680367,1751293840040,-500.0,0.00018407,2]
[368680368,1751293840049,-500.0,0.00018407,2]
[368680369,1751293840059,-500.0,0.00018407,2]
[368680370,1751293840068,-500.0,0.00018407,2]
[368680371,1751293840077,-500.0,0.00018407,2]
[368680372,1751293840087,-500.0,0.00018407,2]
[368680373,1751293840096,-500.0,0.00018407,2]
[368680374,1751293840106,-500.0,0.00018407,2]
[368680375,1751293840115,-500.0,0.00018407,2]
[368680376,1751293840125,-238.65672953,0.00018407,2]
[368680377,1751293840135,-500.0,0.00018407,2]
[368680378,1751293840144,-500.0,0.00018407,2]
[368680379,1751293840154,-500.0,0.00018407,2]
[368680380,1751293840163,-500.0,0.00018407,2]
[368680381,1751293840172,-500.0,0.00018407,2]
[368680382,1751293840182,-359.66059441,0.00018407,2]
[368680383,1751293840191,-500.0,0.00018407,2]
[368680384,1751293840201,-500.0,0.00018407,2]
[368680385,1751293840210,-500.0,0.00018407,2]
[368680386,1751293840220,-530.91941413,0.00018407,2]
[368680387,1751293840229,-500.0,0.00018407,2]
[368680388,1751293840239,-500.0,0.00018407,2]
[368680389,1751293840249,-500.0,0.00018407,2]
[368680390,1751293840258,-1582.51001864,0.0001841,2]
[368680391,1751293840267,-460.0,0.00018438,2]
[368680392,1751293840277,-460.0,0.00018438,2]
[368680393,1751293840286,-197.5757034,0.00018508,2]
[368680394,1751293840295,-460.0,0.00018508,2]
[368680395,1751293840305,-460.0,0.00018508,2]
[368680396,1751293840314,-460.0,0.00018508,2]
[368680397,1751293840323,-1311.28,0.00018508,2]
[368680398,1751293840332,-460.0,0.00018508,2]
[368680399,1751293840342,-460.0,0.00018508,2]
[368680400,1751293840351,-460.0,0.00018508,2]
[368680401,1751293840362,-460.0,0.00018508,2]
[368680402,1751293840371,-460.0,0.00018509,2]
[368680403,1751293840380,-460.0,0.00018509,2]
[368680404,1751293840389,-496.38,0.00018509,2]
[368680405,1751293840399,-460.0,0.00018509,2]
[368680406,1751293840408,-460.0,0.00018509,2]
[368680407,1751293840418,-460.0,0.00018509,2]
[368680408,1751293840427,-460.0,0.00018509,2]
[368680409,1751293840436,-479.93,0.00018509,2]
[368680410,1751293840446,-460.0,0.00018509,2]
[368680411,1751293840455,-460.0,0.00018509,2]
[368680412,1751293840465,-460.0,0.00018509,2]
[368680413,1751293840474,-460.0,0.00018509,2]
[368680414,1751293840484,-2366.77,0.00018509,2]
[368680415,1751293840494,-460.0,0.00018509,2]
[368680416,1751293840508,-460.0,0.00018509,2]
[368680417,1751293840518,-460.0,0.00018509,2]
[368680418,1751293840527,-460.0,0.00018509,2]
[368680419,1751293840537,-460.0,0.00018509,2]
[368680420,1751293840546,-2143.09,0.00018509,2]
[368680421,1751293840556,-460.0,0.00018509,2]
[368680422,1751293840565,-460.0,0.00018509,2]
[368680423,1751293840575,-460.0,0.00018509,2]
[368680424,1751293840584,-460.0,0.00018509,2]
[368680425,1751293840594,-460.0,0.00018509,2]
[368680426,1751293840603,-460.0,0.00018509,2]
[368680427,1751293840613,-1813.65,0.00018509,2]
[368680428,1751293840624,-460.0,0.00018509,2]
[368680429,1751293840634,-460.0,0.00018509,2]
[368680430,1751293840646,-668.08,0.00018509,2]
[368680431,1751293840655,-460.0,0.00018509,2]
[368680432,1751293840665,-460.0,0.00018509,2]
[368680433,1751293840674,-460.0,0.00018509,2]
[368680434,1751293840683,-2801.94,0.00018509,2]
[368680435,1751293840693,-514.92,0.00018509,2]
[368680436,1751293840702,-1102.05,0.00018509,2]
[368680437,1751293840712,-460.0,0.00018509,2]
[368680438,1751293840722,-460.0,0.00018509,2]
[368680439,1751293840731,-460.0,0.00018509,2]
[368680440,1751293840740,-460.0,0.00018509,2]
[368680441,1751293840750,-460.0,0.00018509,2]
[368680442,1751293840759,-460.0,0.00018509,2]
[368680443,1751293840768,-460.0,0.00018509,2]
[368680444,1751293840778,-460.0,0.00018509,2]
[368680445,1751293840787,-460.0,0.00018509,2]
[368680446,1751293840796,-1330.48,0.00018509,2]
[368680447,1751293840806,-460.0,0.00018509,2]
[368680448,1751293840816,-460.0,0.00018509,2]
[368680449,1751293840825,-460.0,0.0001851,2]
[368680450,1751293840838,-460.0,0.0001851,2]
[368680451,1751293840847,-460.0,0.0001851,2]
[368680452,1751293840856,-460.0,0.0001851,2]
[368680453,1751293840866,-460.0,0.0001851,2]
[368680454,1751293840875,-460.0,0.0001851,2]
[368680455,1751293840884,-460.0,0.0001851,2]
[368680456,1751293840894,-460.0,0.0001851,2]
[368680457,1751293840905,-460.0,0.0001851,2]
[368680458,1751293840915,-460.0,0.0001851,2]
[368680459,1751293840924,-566.8,0.0001851,2]
[368680460,1751293840934,-460.0,0.0001851,2]
[368680461,1751293840943,-460.0,0.0001851,2]
[368680462,1751293840953,-460.0,0.0001851,2]
[368680463,1751293840963,-460.0,0.0001851,2]
[368680464,1751293840972,-460.0,0.0001851,2]
[368680465,1751293840982,-624.25,0.0001851,2]
[368680466,1751293840991,-460.0,0.0001851,2]
[368680467,1751293841000,-460.0,0.0001851,2]
[368680468,1751293841010,-485.87,0.0001851,2]
[368680469,1751293841019,-460.0,0.0001851,2]
[368680470,1751293841028,-750.98,0.0001851,2]
[368680471,1751293841037,-460.0,0.0001851,2]
[368680472,1751293841047,-460.0,0.0001851,2]
[368680473,1751293841056,-460.0,0.0001851,2]
[368680474,1751293841066,-460.0,0.0001851,2]
[368680475,1751293841076,-1378.23,0.0001851,2]
[368680476,1751293841085,-460.0,0.0001851,2]
[368680477,1751293841094,-399.63,0.0001851,2]
[368680478,1751293841103,-460.0,0.0001851,2]
[368680479,1751293841112,-460.0,0.0001851,2]
[368680481,1751293841122,-703.57,0.0001851,2]
[368680483,1751293841132,-460.0,0.0001851,2]
[368680484,1751293841142,-460.0,0.0001851,2]
[368680485,1751293841151,-460.0,0.0001851,2]
[368680486,1751293841161,-460.0,0.0001851,2]
[368680487,1751293841171,-460.0,0.0001851,2]